fUST/lending_fUST_20250729
["ID","MTS","AMOUNT","RATE_DAILY","PERIOD"]
[375760370,1753732246672,-505.23,0.00021643,2]
[375760371,1753732246682,-3430.45,0.00021643,2]
[375760372,1753732246693,-622.29,0.00021643,2]
[375760373,1753732246704,-473.2,0.00021643,2]
[375760374,1753732246716,-460.0,0.00021643,2]
[375760375,1753732246728,-1565.51,0.00021643,2]
[375760376,1753732246739,-930.17,0.00021643,2]
[375760377,1753732246750,-460.0,0.00021643,2]
[375760378,1753732246761,-460.0,0.00021643,2]
[375760379,1753732246772,-738.4,0.00021643,2]
[375760380,1753732246782,-586.63,0.00021643,2]
[375760381,1753732246794,-460.0,0.00021643,2]
[375760382,1753732246805,-3165.1,0.00021643,2]
[375760383,1753732246816,-460.0,0.00021643,2]
[375760384,1753732246827,-1490.83,0.00021643,2]
[375760385,1753732246836,-460.0,0.00021643,2]
[375760386,1753732247003,-460.0,0.00021643,2]
[375760387,1753732247022,-483.33,0.00021643,2]
[375760388,1753732247034,-2025.5,0.00021643,2]
[375760389,1753732247047,-1649.51,0.00021643,2]
[375760390,1753732247057,-904.77,0.00021643,2]
[375760391,1753732247066,-500.38,0.00021643,2]
[375760392,1753732247075,-460.0,0.00021643,2]
[375760393,1753732247086,-460.0,0.00021643,2]
[375760394,1753732247096,-460.0,0.00021643,2]
[375760395,1753732247106,-710.73,0.00021643,2]
[375760396,1753732247116,-460.0,0.00021643,2]
[375760397,1753732247125,-460.0,0.00021643,2]
[375760398,1753732247135,-1387.64,0.00021643,2]
[375760399,1753732247143,-645.56,0.00021643,2]
[375760400,1753732247153,-460.0,0.00021643,2]
[375760401,1753732247162,-460.0,0.00021643,2]
[375760402,1753732247171,-260.0,0.00021661,2]
[375760403,1753732247180,-178.917,0.00021665,2]
[375760404,1753732247190,-1695.893,0.00021665,2]
[375760405,1753732247199,-1000.0,0.00021792,2]
[375760406,1753732247208,-171.22213563,0.00021816,2]
[375760407,1753732247217,-1000.0,0.00021885,2]
[375760408,1753732247226,-1212.3,0.00021891,4]
[375760409,1753732247235,-151.0,0.000219,3]
[375760410,1753732247245,-460.0,0.00021917,2]
[375760411,1753732247254,-951.44,0.00021917,2]
[375760412,1753732247264,-670.97,0.00021917,2]
[375760413,1753732247273,-475.44,0.00021917,2]
[375760414,1753732247283,-460.0,0.00021917,2]
[375760415,1753732247292,-460.0,0.00021917,2]
[375760416,1753732247301,-460.0,0.00021917,2]
[375760417,1753732247310,-578.46,0.00021917,2]
[375760418,1753732247319,-4776.13,0.00021917,2]
[375760419,1753732247328,-460.0,0.00021917,2]
[375760420,1753732247338,-460.98261504,0.00021917,2]
[375760421,1753732247347,-460.0,0.00021917,2]
[375760422,1753732247356,-2556.15,0.00021917,2]
[375760423,1753732247365,-5853.43,0.00021917,2]
[375760424,1753732247374,-541.14,0.00021917,2]
[375760425,1753732247384,-542.76,0.00021917,2]
[375760426,1753732247393,-460.0,0.00021917,2]
[375760427,1753732247403,-1757.55,0.00021917,2]
[375760428,1753732247412,-460.0,0.00021917,2]
[375760429,1753732247421,-460.0,0.00021917,2]
[375760430,1753732247430,-460.0,0.00021917,2]
[375760431,1753732247439,-505.23,0.00021917,2]
[375760432,1753732247448,-3430.45,0.00021917,2]
[375760433,1753732247457,-622.29,0.00021917,2]
[375760434,1753732247466,-473.2,0.00021917,2]
[375760435,1753732247475,-460.0,0.00021917,2]
[375760436,1753732247484,-1565.51,0.00021917,2]
[375760437,1753732247493,-930.17,0.00021917,2]
[375760438,1753732247502,-460.0,0.00021917,2]
[375760439,1753732247511,-460.0,0.00021917,2]
[375760440,1753732247520,-738.4,0.00021917,2]
[375760441,1753732247529,-500.0,0.00021917,2]
[375760442,1753732247539,-500.0,0.00021917,2]
[375760443,1753732247548,-500.0,0.00021917,2]
[375760444,1753732247557,-500.0,0.00021917,2]
[375760445,1753732247566,-500.0,0.00021917,2]
[375760446,1753732247576,-586.63,0.00021917,2]
[375760447,1753732247585,-500.0,0.00021917,2]
[375760448,1753732247596,-500.0,0.00021917,2]
[375760449,1753732247605,-460.0,0.00021917,2]
[375760450,1753732247614,-500.0,0.00021917,2]
[375760451,1753732247623,-500.0,0.00021917,2]
[375760452,1753732247633,-500.0,0.00021917,2]
[375760453,1753732247642,-500.0,0.00021917,2]
[375760454,1753732247651,-3165.1,0.00021917,2]
[375760455,1753732247660,-460.0,0.00021917,2]
[375760456,1753732247669,-1490.83,0.00021917,2]
[375760457,1753732247679,-460.0,0.00021917,2]
[375760458,1753732247688,-460.0,0.00021917,2]
[375760459,1753732247698,-483.33,0.00021917,2]
[375760460,1753732247707,-2025.5,0.00021917,2]
[375760461,1753732247717,-1649.51,0.00021917,2]
[375760462,1753732247726,-904.77,0.00021917,2]
[375760463,1753732247735,-500.38,0.00021917,2]
[375760464,1753732247744,-460.0,0.00021917,2]
[375760465,1753732247753,-460.0,0.00021917,2]
[375760466,1753732247763,-460.0,0.00021917,2]
[375760467,1753732247772,-710.73,0.00021917,2]
[375760468,1753732247781,-510.75,0.00021917,2]
[375760469,1753732247791,-460.0,0.00021917,2]
[375760470,1753732247800,-1387.64,0.00021917,2]
[375760471,1753732247809,-645.56,0.00021917,2]
[375760472,1753732247818,-460.0,0.00021917,2]
[375760473,1753732247827,-396.39179746,0.00021917,2]
[375760474,1753732247836,-200.0,0.00021918,2]
[375760475,1753732247846,-500.0,0.00021918,2]
[375760476,1753732247856,-500.0,0.00021918,2]
[375760477,1753732247866,-488.09798802,0.00021918,2]
[375760478,1753732247875,-212.32287949,0.00021973,2]
[375760479,1753732247884,-454.28546416,0.00021973,2]
[375760480,1753732247894,-150.0,0.00021973,2]
[375760481,1753732247903,-150.0,0.00021973,2]
[375760482,1753732247912,-1238.09,0.00022,7]
[375760483,1753732247921,-151.0,0.00022,2]
[375760484,1753732247931,-4567.1583397,0.00022,7]
[375760485,1753732248046,-591.37280807,0.00022,7]
[375760486,1753732248058,-4399.0543402,0.00022,7]
[375760487,1753732248124,-460.0,0.00019178,2]
[375760488,1753732248135,-460.0,0.00019452,2]
[375760489,1753732248145,-320.08731385,0.00019726,2]
[375760490,1753732248154,-2695.51451203,0.00022,7]
[375760491,1753732248164,-197.0,0.00022,2]
[375760492,1753732248174,-3217.67,0.00022,7]
[375760493,1753732248183,-45186.03,0.00022,2]
[375760494,1753732248193,-158.348141,0.00022,4]
[375760495,1753732248202,-454.6043428,0.00022,7]
[375760496,1753732248211,-214.87999826,0.00022,7]
[375760497,1753732248221,-12634.73134317,0.00022,7]
[375760498,1753732248230,-341.86,0.00022,2]
[375760499,1753732248240,-312.16666667,0.00022,7]
[375760500,1753732248249,-11140.64501356,0.00022026,2]
[375760501,1753732248259,-2042.18048329,0.00022164,2]
[375760502,1753732248268,-410.96699626,0.00022171,2]
[375760503,1753732248277,-460.0,0.00022191,2]
[375760504,1753732248287,-951.44,0.00022191,2]
[375760505,1753732248295,-670.97,0.00022191,2]
[375760506,1753732248305,-475.44,0.00022191,2]
[375760507,1753732248314,-460.0,0.00022191,2]
[375760508,1753732248324,-460.0,0.00022191,2]
[375760509,1753732248334,-360.67958279,0.00022191,2]
[375760510,1753732248345,-578.46,0.00022191,2]
[375760511,1753732248355,-3381.77603532,0.00022191,2]
[375760512,1753732248368,-1394.35396468,0.00022191,2]
[375760513,1753732248378,-460.0,0.00022191,2]
[375760514,1753732248387,-460.0,0.00022191,2]
[375760515,1753732248396,-2556.15,0.00022191,2]
[375760516,1753732248407,-5853.43,0.00022191,2]
[375760517,1753732248416,-541.14,0.00022191,2]
[375760518,1753732248427,-542.76,0.00022191,2]
[375760519,1753732248437,-460.0,0.00022191,2]
[375760520,1753732248447,-1757.55,0.00022191,2]
[375760521,1753732248456,-460.0,0.00022191,2]
[375760522,1753732248466,-460.0,0.00022191,2]
[375760523,1753732248475,-460.0,0.00022191,2]
[375760524,1753732248484,-505.23,0.00022191,2]
[375760525,1753732248493,-3430.45,0.00022191,2]
[375760526,1753732248503,-622.29,0.00022191,2]
[375760527,1753732248512,-473.2,0.00022191,2]
[375760528,1753732248521,-460.0,0.00022191,2]
[375760529,1753732248531,-1565.51,0.00022191,2]
[375760530,1753732248540,-643.80697767,0.00022191,2]
[375760531,1753732248552,-286.36302233,0.00022191,2]
[375760532,1753732248562,-460.0,0.00022191,2]
[375760533,1753732248571,-460.0,0.00022191,2]
[375760534,1753732248580,-738.4,0.00022191,2]
[375760535,1753732248589,-586.63,0.00022191,2]
[375760536,1753732248599,-460.0,0.00022191,2]
[375760537,1753732248609,-500.0,0.00022191,2]
[375760538,1753732248618,-3165.1,0.00022191,2]
[375760539,1753732248627,-460.0,0.00022191,2]
[375760540,1753732248637,-1490.83,0.00022191,2]
[375760541,1753732248646,-460.0,0.00022191,2]
[375760542,1753732248655,-460.0,0.00022191,2]
[375760543,1753732248664,-483.33,0.00022191,2]
[375760544,1753732248673,-2025.5,0.00022191,2]
[375760545,1753732248681,-1649.51,0.00022191,2]
[375760546,1753732248690,-904.77,0.00022191,2]
[375760547,1753732248700,-500.38,0.00022191,2]
[375760548,1753732248709,-460.0,0.00022191,2]
[375760549,1753732248719,-460.0,0.00022191,2]
[375760550,1753732248728,-710.73,0.00022191,2]
[375760551,1753732248737,-460.0,0.00022191,2]
[375760552,1753732248746,-1387.64,0.00022191,2]
[375760553,1753732248756,-645.56,0.00022191,2]
[375760554,1753732248765,-460.0,0.00022191,2]
[375760555,1753732248774,-360.0,0.00022209,2]
[375760556,1753732248784,-158.348141,0.00022286,2]
[375760557,1753732248793,-3375.9737256,0.00022286,2]
[375760558,1753732248803,-1212.3,0.0002232,4]
[375760559,1753732248812,-1448.23437366,0.0002234,2]
[375760560,1753732248822,-1387.31851068,0.00022434,2]
[375760561,1753732248831,-460.0,0.00022465,2]
[375760562,1753732248840,-951.44,0.00022465,2]
[375760563,1753732248851,-670.97,0.00022465,2]
[375760564,1753732248861,-475.44,0.00022465,2]
[375760565,1753732248870,-460.0,0.00022465,2]
[375760566,1753732248881,-460.0,0.00022465,2]
[375760567,1753732248891,-578.46,0.00022465,2]
[375760568,1753732248900,-4776.13,0.00022465,2]
[375760569,1753732248909,-460.0,0.00022465,2]
[375760570,1753732248918,-460.0,0.00022465,2]
[375760571,1753732248927,-2556.15,0.00022465,2]
[375760572,1753732248936,-5853.43,0.00022465,2]
[375760573,1753732248946,-541.14,0.00022465,2]
[375760574,1753732248955,-542.76,0.00022465,2]
[375760575,1753732248965,-460.0,0.00022465,2]
[375760576,1753732248975,-1757.55,0.00022465,2]
[375760577,1753732248984,-460.0,0.00022465,2]
[375760578,1753732248995,-460.0,0.00022465,2]
[375760579,1753732249004,-460.0,0.00022465,2]
[375760580,1753732249013,-505.23,0.00022465,2]
[375760581,1753732249023,-3430.45,0.00022465,2]
[375760582,1753732249034,-622.29,0.00022465,2]
[375760583,1753732249047,-473.2,0.00022465,2]
[375760584,1753732249057,-460.0,0.00022465,2]
[375760585,1753732249066,-930.17,0.00022465,2]
[375760586,1753732249076,-460.0,0.00022465,2]
[375760587,1753732249086,-460.0,0.00022465,2]
[375760588,1753732249098,-738.4,0.00022465,2]
[375760589,1753732249107,-460.0,0.00022465,2]
[375760590,1753732249117,-586.63,0.00022465,2]
[375760591,1753732249126,-500.0,0.00022465,2]
[375760592,1753732249136,-3165.1,0.00022465,2]
[375760593,1753732249146,-460.0,0.00022465,2]
[375760594,1753732249155,-1490.83,0.00022465,2]
[375760595,1753732249164,-460.0,0.00022465,2]
[375760596,1753732249174,-460.0,0.00022465,2]
[375760597,1753732249183,-483.33,0.00022465,2]
[375760598,1753732249193,-2025.5,0.00022465,2]
[375760599,1753732249202,-1649.51,0.00022465,2]
[375760600,1753732249212,-904.77,0.00022465,2]
[375760601,1753732249221,-365.40102151,0.00022465,2]
[375760602,1753732249234,-134.97897849,0.00022465,2]
[375760603,1753732249243,-606.87162102,0.00022465,2]
[375760604,1753732249252,-460.0,0.00022465,2]
[375760605,1753732249261,-710.73,0.00022465,2]
[375760606,1753732249271,-460.0,0.00022465,2]
[375760607,1753732249280,-1387.64,0.00022465,2]
[375760608,1753732249289,-645.56,0.00022465,2]
[375760609,1753732249299,-460.0,0.00022465,2]
[375760610,1753732249308,-300.0,0.00022521,2]
[375760611,1753732249317,-250.0,0.00022521,2]
[375760612,1753732249328,-179.71246006,0.00022532,2]
[375760613,1753732249337,-341.86,0.00022553,2]
[375760614,1753732249346,-151.0,0.000226,5]
[375760615,1753732249355,-265.405404,0.00022603,2]
[375760616,1753732249364,-401.62407296,0.00022603,2]
[375760617,1753732249373,-587.0,0.00022661,2]
[375760618,1753732249383,-3375.9737256,0.00022722,2]
[375760619,1753732249391,-460.0,0.00022739,2]
[375760620,1753732249401,-951.44,0.00022739,2]
[375760621,1753732249411,-670.97,0.00022739,2]
[375760622,1753732249420,-475.44,0.00022739,2]
[375760623,1753732249430,-460.0,0.00022739,2]
[375760624,1753732249439,-348.73,0.00022739,2]
[375760625,1753732249449,-578.46,0.00022739,2]
[375760626,1753732249458,-4776.13,0.00022739,2]
[375760627,1753732249467,-460.0,0.00022739,2]
[375760628,1753732249477,-2556.15,0.00022739,2]
[375760629,1753732249487,-541.14,0.00022739,2]
[375760630,1753732249496,-542.76,0.00022739,2]
[375760631,1753732249506,-460.0,0.00022739,2]
[375760632,1753732249515,-1757.55,0.00022739,2]
[375760633,1753732249525,-460.0,0.00022739,2]
[375760634,1753732249535,-460.0,0.00022739,2]
[375760635,1753732249544,-1037.93,0.00022739,2]
[375760636,1753732249553,-460.0,0.00022739,2]
[375760637,1753732249563,-505.23,0.00022739,2]
[375760638,1753732249572,-3106.93292856,0.00022739,2]
[375760639,1753732249585,-323.51707144,0.00022739,2]
[375760640,1753732249594,-622.29,0.00022739,2]
[375760641,1753732249604,-473.2,0.00022739,2]
[375760642,1753732249614,-460.0,0.00022739,2]
[375760643,1753732249623,-930.17,0.00022739,2]
[375760644,1753732249632,-460.0,0.00022739,2]
[375760645,1753732249642,-460.0,0.00022739,2]
[375760646,1753732249651,-154.54287125,0.00022739,2]
[375760647,1753732249663,-583.85712875,0.00022739,2]
[375760648,1753732249674,-238.30310195,0.00022739,2]
[375760649,1753732249686,-221.69689805,0.00022739,2]
[375760650,1753732249696,-338.51818011,0.00022739,2]
[375760651,1753732249714,-248.11181989,0.00022739,2]
[375760652,1753732249723,-500.0,0.00022739,2]
[375760653,1753732249732,-2011.88818011,0.00022739,2]
[375760654,1753732249949,-638.13,0.00019178,2]
[375760655,1753732249958,-278.0728867,0.00019178,2]
[375760656,1753732249970,-181.9271133,0.00019178,2]
[375760657,1753732249979,-638.13,0.00019452,2]
[375760658,1753732249988,-638.13,0.00019726,2]
[375760659,1753732250120,-638.13,0.0002,2]
[375760660,1753732250130,-638.13,0.00020273,2]
[375760661,1753732250139,-638.13,0.00020547,2]
[375760662,1753732250148,-638.13,0.00020821,2]
[375760663,1753732250158,-638.13,0.00021095,2]
[375760664,1753732250167,-638.13,0.00021369,2]
[375760665,1753732250176,-638.13,0.00021643,2]
[375760666,1753732250185,-638.13,0.00021917,2]
[375760667,1753732250194,-638.13,0.00022191,2]
[375760668,1753732250203,-638.13,0.00022465,2]
[375760669,1753732250212,-1153.21181989,0.00022739,2]
[375760670,1753732250221,-460.0,0.00022739,2]
[375760671,1753732250230,-1490.83,0.00022739,2]
[375760672,1753732250239,-460.0,0.00022739,2]
[375760673,1753732250248,-452.01,0.00022739,2]
[375760674,1753732250258,-483.33,0.00022739,2]
[375760675,1753732250267,-2025.5,0.00022739,2]
[375760676,1753732250276,-1649.51,0.00022739,2]
[375760677,1753732250285,-904.77,0.00022739,2]
[375760678,1753732250295,-500.38,0.00022739,2]
[375760679,1753732250303,-460.0,0.00022739,2]
[375760680,1753732250312,-710.73,0.00022739,2]
[375760681,1753732250321,-460.0,0.00022739,2]
[375760682,1753732250331,-1387.64,0.00022739,2]
[375760683,1753732250340,-645.56,0.00022739,2]
[375760684,1753732250349,-460.0,0.00022739,2]
[375760685,1753732250358,-638.13,0.00022739,2]
[375760686,1753732250367,-1212.3,0.00022748,5]
[375760687,1753732250376,-460.0,0.00022757,2]
[375760688,1753732250385,-1049.2646426,0.00022843,2]
[375760689,1753732250394,-3375.9737256,0.00022879,2]
[375760690,1753732250403,-1751.33732001,0.00022902,2]
[375760691,1753732250412,-15308.02134396,0.0002291,2]
[375760692,1753732250424,-3824.0503158,0.0002291,2]
[375760693,1753732250455,-1199.3074713,0.0002291,2]
[375760694,1753732251922,-56231.46156654,0.0002291,2]
[375760695,1753732251932,-25000.0,0.0002291,2]
[375760696,1753732251941,-151.0,0.0002291,2]
[375760697,1753732251951,-10494.92408845,0.0002291,2]
[375760698,1753732251960,-151.0,0.0002291,2]
[375760699,1753732251969,-3942.302754,0.0002291,2]
[375760700,1753732251978,-287.47172873,0.00022932,8]
[375760701,1753732251987,-158.348141,0.00022938,4]
[375760702,1753732251996,-1587.17,0.00023,2]
[375760703,1753732252005,-158.348141,0.00023,8]
[375760704,1753732252014,-160.0,0.00023,2]
[375760705,1753732252023,-332.25751443,0.00023,2]
[375760706,1753732252033,-268.28,0.00023013,2]
[375760707,1753732252046,-951.44,0.00023013,2]
[375760708,1753732252055,-670.97,0.00023013,2]
[375760709,1753732252064,-158.348141,0.00023013,8]
[375760710,1753732252074,-475.44,0.00023013,2]
[375760711,1753732252083,-460.0,0.00023013,2]
[375760712,1753732252092,-578.46,0.00023013,2]
[375760713,1753732252103,-4776.13,0.00023013,2]
[375760714,1753732252112,-460.0,0.00023013,2]
[375760715,1753732252124,-2556.15,0.00023013,2]
[375760716,1753732252133,-541.14,0.00023013,2]
[375760717,1753732252142,-542.76,0.00023013,2]
[375760718,1753732252152,-460.0,0.00023013,2]
[375760719,1753732252161,-1757.55,0.00023013,2]
[375760720,1753732252170,-460.0,0.00023013,2]
[375760721,1753732252179,-460.0,0.00023013,2]
[375760722,1753732252188,-1037.93,0.00023013,2]
[375760723,1753732252197,-460.0,0.00023013,2]
[375760724,1753732252206,-505.23,0.00023013,2]
[375760725,1753732252216,-3430.45,0.00023013,2]
[375760726,1753732252225,-622.29,0.00023013,2]
[375760727,1753732252234,-473.2,0.00023013,2]
[375760728,1753732252244,-460.0,0.00023013,2]
[375760729,1753732252254,-930.17,0.00023013,2]
[375760730,1753732252264,-460.0,0.00023013,2]
[375760731,1753732252273,-460.0,0.00023013,2]
[375760732,1753732252282,-738.4,0.00023013,2]
[375760733,1753732252292,-460.0,0.00023013,2]
[375760734,1753732252301,-509.37948221,0.00023013,2]
[375760735,1753732252310,-3165.1,0.00023013,2]
[375760736,1753732252319,-460.0,0.00023013,2]
[375760737,1753732252328,-1490.83,0.00023013,2]
[375760738,1753732252338,-460.0,0.00023013,2]
[375760739,1753732252347,-483.33,0.00023013,2]
[375760740,1753732252356,-2025.5,0.00023013,2]
[375760741,1753732252366,-1649.51,0.00023013,2]
[375760742,1753732252375,-904.77,0.00023013,2]
[375760743,1753732252383,-500.38,0.00023013,2]
[375760744,1753732252393,-460.0,0.00023013,2]
[375760745,1753732252402,-710.73,0.00023013,2]
[375760746,1753732252411,-460.0,0.00023013,2]
[375760747,1753732252420,-1387.64,0.00023013,2]
[375760748,1753732252430,-645.56,0.00023013,2]
[375760749,1753732252439,-460.0,0.00023013,2]
[375760750,1753732252448,-638.13,0.00023013,2]
[375760751,1753732252457,-151.0,0.00023014,7]
[375760752,1753732252466,-197.0,0.00023014,7]
[375760753,1753732252475,-158.348141,0.00023026,8]
[375760754,1753732252485,-158.348141,0.0002304,8]
[375760755,1753732252494,-158.348141,0.00023053,8]
[375760756,1753732252503,-350.0,0.00023068,2]
[375760757,1753732252512,-430.064903,0.00023094,2]
[375760758,1753732252521,-430.064903,0.00023094,2]
[375760759,1753732252530,-430.064903,0.00023094,2]
[375760760,1753732252540,-1238.09,0.000231,7]
[375760761,1753732252549,-1212.3,0.00023177,5]
[375760762,1753732252558,-3375.9737257,0.00023199,2]
[375760763,1753732252567,-12253.1,0.000232,7]
[375760764,1753732252576,-3217.67,0.000232,7]
[375760765,1753732252585,-45186.03,0.000232,2]
[375760766,1753732252594,-410.96699626,0.00023208,2]
[375760767,1753732252604,-2159.0,0.00023216,2]
[375760768,1753732252647,-972.678,0.00023216,2]
[375760769,1753732252656,-951.44,0.00023287,2]
[375760770,1753732252666,-670.97,0.00023287,2]
[375760771,1753732252675,-475.44,0.00023287,2]
[375760772,1753732252684,-460.0,0.00023287,2]
[375760773,1753732252693,-578.46,0.00023287,2]
[375760774,1753732252702,-4776.13,0.00023287,2]
[375760775,1753732252711,-460.0,0.00023287,2]
[375760776,1753732252720,-2556.15,0.00023287,2]
[375760777,1753732252728,-541.14,0.00023287,2]
[375760778,1753732252738,-542.76,0.00023287,2]
[375760779,1753732252746,-500.0,0.00023287,2]
[375760780,1753732252755,-460.0,0.00023287,2]
[375760781,1753732252765,-1757.55,0.00023287,2]
[375760782,1753732252774,-460.0,0.00023287,2]
[375760783,1753732252784,-460.0,0.00023287,2]
[375760784,1753732252794,-1037.93,0.00023287,2]
[375760785,1753732252803,-460.0,0.00023287,2]
[375760786,1753732252813,-505.23,0.00023287,2]
[375760787,1753732252822,-3430.45,0.00023287,2]
[375760788,1753732252831,-622.29,0.00023287,2]
[375760789,1753732252841,-473.2,0.00023287,2]
[375760790,1753732252851,-460.0,0.00023287,2]
[375760791,1753732252860,-930.17,0.00023287,2]
[375760792,1753732252870,-460.0,0.00023287,2]
[375760793,1753732252879,-460.0,0.00023287,2]
[375760794,1753732252889,-738.4,0.00023287,2]
[375760795,1753732252898,-460.0,0.00023287,2]
[375760796,1753732252907,-3165.1,0.00023287,2]
[375760797,1753732252916,-460.0,0.00023287,2]
[375760798,1753732252925,-1490.83,0.00023287,2]
[375760799,1753732252934,-460.0,0.00023287,2]
[375760800,1753732252943,-483.33,0.00023287,2]
[375760801,1753732252952,-2025.5,0.00023287,2]
[375760802,1753732252961,-1649.51,0.00023287,2]
[375760803,1753732252970,-904.77,0.00023287,2]
[375760804,1753732252979,-500.38,0.00023287,2]
[375760805,1753732252988,-460.0,0.00023287,2]
[375760806,1753732252998,-710.73,0.00023287,2]
[375760807,1753732253007,-460.0,0.00023287,2]
[375760808,1753732253017,-1387.64,0.00023287,2]
[375760809,1753732253026,-645.56,0.00023287,2]
[375760810,1753732253037,-460.0,0.00023287,2]
[375760811,1753732253050,-638.13,0.00023287,2]
[375760812,1753732253060,-503.81332379,0.00023297,9]
[375760813,1753732253071,-500.0,0.00023297,9]
[375760814,1753732253081,-988.60741412,0.000233,2]
[375760815,1753732253090,-560.0,0.00023305,2]
[375760816,1753732253100,-158.348141,0.00023412,2]
[375760817,1753732253109,-25000.0,0.00023458,2]
[375760818,1753732253120,-1387.31851068,0.00023461,2]
[375760819,1753732253129,-200.0,0.00023461,15]
[375760820,1753732253139,-200.0,0.00023461,15]
[375760821,1753732253148,-200.0,0.00023461,15]
[375760822,1753732253157,-200.0,0.00023461,15]
[375760823,1753732253167,-200.0,0.00023461,15]
[375760824,1753732253176,-200.0,0.00023461,15]
[375760825,1753732253185,-366.0,0.00023461,15]
[375760826,1753732253194,-165.92139603,0.00023479,2]
[375760827,1753732253203,-164.81180196,0.00023479,2]
[375760828,1753732253212,-859.4927504,0.00023534,2]
[375760829,1753732253221,-430.064903,0.00023534,2]
[375760830,1753732253230,-430.064903,0.00023534,2]
[375760831,1753732253240,-430.064903,0.00023534,2]
[375760832,1753732253249,-860.129806,0.00023534,2]
[375760833,1753732253258,-430.064903,0.00023534,2]
[375760834,1753732253267,-430.064903,0.00023534,2]
[375760835,1753732253276,-430.064903,0.00023534,2]
[375760836,1753732253285,-508.844557,0.00023534,2]
[375760837,1753732253294,-951.44,0.00023561,2]
[375760838,1753732253303,-670.97,0.00023561,2]
[375760839,1753732253313,-475.44,0.00023561,2]
[375760840,1753732253322,-460.0,0.00023561,2]
[375760841,1753732253331,-578.46,0.00023561,2]
[375760842,1753732253340,-4776.13,0.00023561,2]
[375760843,1753732253351,-397.90012525,0.00023561,2]
[375760844,1753732253363,-2556.15,0.00023561,2]
[375760845,1753732253372,-541.14,0.00023561,2]
[375760846,1753732253382,-542.76,0.00023561,2]
[375760847,1753732253391,-300.9,0.00023561,2]
[375760848,1753732253401,-1757.55,0.00023561,2]
[375760849,1753732253410,-460.0,0.00023561,2]
[375760850,1753732253419,-460.0,0.00023561,2]
[375760851,1753732253429,-1037.93,0.00023561,2]
[375760852,1753732253438,-460.0,0.00023561,2]
[375760853,1753732253447,-505.23,0.00023561,2]
[375760854,1753732253457,-3430.45,0.00023561,2]
[375760855,1753732253467,-622.29,0.00023561,2]
[375760856,1753732253476,-473.2,0.00023561,2]
[375760857,1753732253486,-460.0,0.00023561,2]
[375760858,1753732253495,-930.17,0.00023561,2]
[375760859,1753732253505,-460.0,0.00023561,2]
[375760860,1753732253515,-460.0,0.00023561,2]
[375760861,1753732253524,-738.4,0.00023561,2]
[375760862,1753732253534,-460.0,0.00023561,2]
[375760863,1753732253543,-3165.1,0.00023561,2]
[375760864,1753732253553,-460.0,0.00023561,2]
[375760865,1753732253563,-1490.83,0.00023561,2]
[375760866,1753732253573,-460.0,0.00023561,2]
[375760867,1753732253582,-483.33,0.00023561,2]
[375760868,1753732253592,-2025.5,0.00023561,2]
[375760869,1753732253603,-1649.51,0.00023561,2]